Cogmind - Beta 10 X2 --- EXPLORER MODE // 2020.07.18 @ 22:21:50 // Experiment/BattleRoyale Player: Minty Result: Destroyed by Redbot-12 via exploding Nuclear Reactor Performance ------------- Evolutions (0) 0 Regions Visited (0) 0 Robots Destroyed (1) 5 Value Destroyed (500) 500 Prototype IDs (1) 20 Alien Tech Used (0) 0 Bonus (0) 0 TOTAL SCORE: 525 Bonus ------- None Cogmind --------- Core Integrity 0/250 Matter 160/300 Energy 505/505 System Corruption 0% Temperature Cool (12) Movement Walking (130) Location -5/Wartown Parts ------- > --- POWER (3) -------- Improved Deuterium Engine Neutrino Core > --- PROPULSION (4) --- Improved Aluminum Leg Makeshift Leg Makeshift Leg Armored Leg > --- UTILITY (6) ------ Power Amplifier Advanced Heat Sink Advanced Sensor Array Improved Maneuvering Thrusters Utility Shielding Improved Light Armor Plating > --- WEAPON (3) ------- Heavy Gauss Cannon Mini Grenade Launcher Enhanced Force Lance > --- INVENTORY (4) ---- Makeshift Laser Makeshift Laser Peak State ------------ > --- POWER ------------ Improved Deuterium Engine Micro Nuclear Core > --- PROPULSION ------- Makeshift Leg Flexi-carbon Leg Improved Antigrav System Improved Diametric Drive > --- UTILITY ---------- Power Amplifier Advanced Sensor Array Improved Maneuvering Thrusters Utility Shielding Improved Light Armor Plating Thermal Shield > --- WEAPON ----------- Makeshift Laser Gauss Rifle Mini Grenade Launcher > --- INVENTORY -------- (None) [Rating: 65] Favorites ----------- Power Improved Deuterium Engine Engine Improved Deuterium Engine Power Core Neutrino Core Propulsion Makeshift Leg Leg Makeshift Leg Hover Unit Improved Antigrav System Flight Unit Improved Diametric Drive Utility Power Amplifier Device Power Amplifier Protection Utility Shielding Weapon Mini Grenade Launcher Energy Gun Makeshift Laser Ballistic Gun Gauss Rifle Ballistic Cannon Heavy Gauss Cannon Launcher Mini Grenade Launcher Piercing Weapon Enhanced Force Lance Build | -5 ------- Run | Tow Slots Evolved . | . Power . | . Propulsion . | . Utility . | . Weapon . | . Parts Attached 9 | 9 Power 1 | 1 Engine . | . Core 1 | 1 Reactor . | . Propulsion 3 | 3 Treads . | . Leg 3 | 3 Wheel . | . Hover . | . Flight . | . Utility 1 | 1 Device 1 | 1 Storage . | . Processor . | . Hackware . | . Protection . | . Artifact . | . Weapon 4 | 4 Energy Gun 1 | 1 Energy Cannon . | . Ballistic Gun 1 | 1 Ballistic Cannon 1 | 1 Launcher . | . Special Weapon . | . Impact Weapon . | . Slashing Weapon . | . Piercing Weapon 1 | 1 Special Melee Weapon . | . Unidentified Prototypes . | . Parts Lost . | . Power . | . Propulsion . | . Utility . | . Weapon . | . Highest Loss Streak . | . Average Slot Usage (%) 83 | 83 Engine 6 | 6 Core 6 | 6 Leg 15 | 15 Device 23 | 23 Protection 12 | 12 Energy Gun 1 | 1 Ballistic Gun 1 | 1 Ballistic Cannon 4 | 4 Launcher 6 | 6 Piercing Weapon 3 | 3 Naked Turns . | . Heaviest Build 53 | 53 Greatest Support 69 | 69 Greatest Overweight (x) 2 | 2 Average Overweight (x) . | . Largest Inventory Capacity 4 | 4 Average Capacity 4 | 4 Most Carried 2 | 2 Average Carried 1 | 1 Final Capacity 4 | 4 Final Carried 2 | 2 Class Distribution -------------------- 69% | Hacker-Mutant 26% | Hacker-Tank 4% | Generator-Tank Dominant Class ---------------- Hacker-Mutant | -5/Wartown Resources | -5 ----------- Run | Tow Matter Collected 20 | 20 Remotely . | . Salvage Created 20 | 20 Parts . | . Haulers Intercepted . | . Recyclers Shooed . | . Parts Field Recycled . | . Retrieved Matter . | . Parts Self-Destructed . | . Prevented . | . Kills | -5 ------- Run | Tow Combat Hostiles Destroyed 1 | 1 Guns 1 | 1 Classes Destroyed 1 | 1 Player 1 | 1 Best Kill Streak 1 | 1 Combat Bots Only 1 | 1 Max Kills in Single Turn 1 | 1 Gunslinging . | . Exploded . | . Melee . | . Uniques/NPCs Destroyed . | . Combat | -5 -------- Run | Tow Damage Taken 557 | 557 Core 252 | 252 Absorbed by Shields . | . Redirected to Core 6675 | 6675 Core Remaining (%) . | . Volleys Fired 12 | 12 Largest 3 | 3 Hottest 108 | 108 Shots Fired 30 | 30 Gun 16 | 16 Cannon 4 | 4 Launcher 10 | 10 Special . | . Kinetic 12 | 12 Thermal 8 | 8 Explosive 10 | 10 Electromagnetic . | . Robot Hit Streak 14 | 14 Robot Miss Streak 1 | 1 Penetration Max . | . Secondary Targets . | . Shots Hit Robots 27 | 27 Core Hits 1 | 1 Critical Hits . | . Critical Kills . | . Critical Parts Destroyed . | . Melee Attacks 1 | 1 Impact . | . Slashing . | . Piercing 1 | 1 Sneak Attacks . | . Combat Hostiles . | . Follow-up Attacks . | . Damage Inflicted 740 | 740 Guns 288 | 288 Cannons 115 | 115 Explosions 299 | 299 Melee 38 | 38 Ramming . | . Kinetic 285 | 285 Thermal 118 | 118 Explosive 299 | 299 Electromagnetic . | . Impact . | . Slashing . | . Piercing 38 | 38 Highest Corruption . | . Average Corruption . | . Corruption Purged . | . Overload Shots . | . Overflow Damage . | . Projectiles . | . Explosions . | . Melee . | . Knockbacks . | . Impact . | . Kinetic . | . Secondary . | . Self-Inflicted Damage 113 | 113 Shots 8 | 8 Rammed . | . Targets Rammed . | . Kicked . | . Crushed . | . Highest Temperature 600 | 600 Average Temperature 256 | 256 Received Heat Transfer 81 | 81 Effects 12 | 12 Shutdowns 3 | 3 Energy Bleed 1 | 1 Interference 4 | 4 Short Circuit 2 | 2 Damage (major) 2 | 2 Siege Activations . | . Robots Corrupted . | . Combat Hostiles . | . Parts Fried . | . Impact Corruptions . | . Robots Melted . | . Combat Hostiles . | . Parts Melted . | . Heat Transferred 63 | 63 Parts Sabotaged . | . Parts Stolen . | . Parts Stripped . | . Power Chain Reactions . | . Missiles Intercepted . | . Alert | -5 ------- Run | Tow Peak Influence . | . Average Influence . | . Maximum Alert Level . | . Low Security (%) . | . Level 1 . | . Level 2 . | . Level 3 . | . Level 4 . | . Level 5 . | . High Security . | . Max Security . | . Squads Dispatched . | . Investigation . | . Extermination . | . Reinforcement . | . Assault . | . Garrison . | . Intercept . | . Construction Impeded . | . Haulers Reinforced . | . Stealth | -5 --------- Run | Tow Distress Signals . | . Communications Jammed . | . Distress Signals . | . Times Spotted 2 | 2 Peak Tracking Total 1 | 1 Tactical Retreats . | . Traps | -5 ------- Run | Tow Traps Triggered . | . Indirectly . | . Trap Hack Attempts . | . Triggered . | . Disarmed . | . Reprogrammed . | . Reused . | . Traps Extracted . | . Installed . | . Triggered . | . Machines | -5 ---------- Run | Tow Machines Disabled . | . Max in Single Turn . | . Machines Sabotaged . | . Garrisons Compromised . | . Overloaded Fab Kills . | . Fab Network Shutdowns . | . Hacking | -5 --------- Run | Tow Machines Accessed . | . Terminals . | . Fabricators . | . Repair Stations . | . Recycling Units . | . Scanalyzers . | . Garrison Access . | . Total Hacks . | . Successful . | . Failed . | . Catastrophic . | . Database Lockouts . | . Manual . | . Terminals . | . Fabricators . | . Repair Stations . | . Recycling Units . | . Scanalyzers . | . Garrison Access . | . Terminal Hacks . | . Fabricator Hacks . | . Repair Station Hacks . | . Recycling Unit Hacks . | . Scanalyzer . | . Garrison Access Hacks . | . Unauthorized Hacks . | . Terminals . | . Fabricators . | . Repair Stations . | . Recycling Units . | . Scanalyzers . | . Garrison Access . | . Data Cores Recovered . | . Used . | . Hacking Detections . | . Full Trace Events . | . Feedback Events . | . Feedback Blocked . | . Robot Schematics Acquired . | . Robots Built . | . Matter . | . Time . | . Total Robot Build Rating . | . Part Schematics Acquired . | . Parts Built . | . Matter . | . Time . | . Total Part Build Rating . | . Parts Repaired . | . Time . | . Parts Recycled . | . Recycled Matter . | . Retrieved Matter . | . Retrieved Components . | . Parts Scanalyzed . | . Part Schematics Acquired . | . Parts Damaged . | . Bothacking | -5 ------------ Run | Tow Used RIF Installer . | . Robots Hacked . | . Non-combat . | . Combat . | . Robot Hacks Applied . | . Relay Couplers Released . | . Robots Rewired . | . Allies Hacked . | . Hacks Repelled . | . Allies | -5 -------- Run | Tow Total Allies . | . Largest Group . | . Highest-Rated Group . | . Highest-Rated Ally . | . Total Orders . | . Ally Attacks . | . Total Damage . | . Kills . | . Allies Corrupted . | . Allies Melted . | . Intel | -5 ------- Run | Tow Robot Analysis Total . | . Derelict Logs Recovered . | . Drone Launches . | . Drone Recoveries . | . Exploration | -5 ------------- Run | Tow Turns Passed 597 | 597 Spaces Moved 350 | 350 Core . | . Treads . | . Legs 350 | 350 Wheels . | . Hover . | . Flight . | . Fastest Speed 130 | 130 Average Speed 141 | 141 Slowest Speed 200 | 200 Overloaded Moves . | . Propulsion Burnouts . | . Robots Hopped . | . Cave-ins Triggered . | . Exploration Rate (%) 17 | 17 Regions Visited 1 Branch Regions 1 Pre-discovered Areas . | . Known Exits Taken . | . Unknown Exits Taken . | . Scrap Searched . | . Spaces Dug . | . Terrain Destroyed 35 | 35 Melee . | . Projectile . | . AOE 35 | 35 Actions | -5 --------- Run | Tow Total 428 | 428 Wait 48 | 48 Move 350 | 350 Hop . | . Pick Up . | . Fast Attach 8 | 8 Attach . | . Detach 1 | 1 Swap 1 | 1 Drop 7 | 7 Fire 12 | 12 Melee 1 | 1 Ram . | . Kick . | . Crush . | . Escape Stasis . | . Rewire . | . Trap . | . Miscellaneous . | . Route ------- -5/Wartown History --------- Turn | Location | Event 36 | -5/Wartown | Core integrity fell below 50% 205 | -5/Wartown | Found Enh. Force Lance 486 | -5/Wartown | Build established: Hacker-Mutant 598 | -5/Wartown | Destroyed by Redbot-12 via exploding Nuclear Reactor Last Messages --------------- 00059_ Adv. Sensor Array temporarily disabled. 00061_ The unstable cave ceiling collapses. 00062_ Flexi-carbon Leg permanently disabled. 00062_ Overheating: Short circuit. 00062_ Dropped Broken Flexi-carbon Leg. 00063_ Dropped Broken Thermal Shield. 00098_ The unstable cave ceiling collapses. 00099_ Dropped Gauss Rifle. 00100_ Acquired Minigun. 00127_ Acquired Neutrino Core. 00148_ Acquired Arm. Leg. 00156_ Dropped Mic. Nuclear Core. 00161_ Dropped Minigun. 00162_ Acquired Hvy. Gauss Cannon. 00205_ Acquired Enh. Force Lance. 00228_ Acquired Adv. Heat Sink. 00237_ Acquired Mak. Leg. 00536_ Acquired Imp. Aluminum Leg. 00598_ Nuclear Reactor explodes. 00598_ Fusion Modulator explodes. Map ----- +----------------------------------------------------+ | ???????????????????? ???????# | | ???????????????????? ????????# | | ????????????????????? ????????# | | ????????????????????? ?????????# | | ?????????????????????? ??????????# | | ?????????????????????? ! ??????????# * | | ????????????????????? ####+### | | ?????????????????????? | | ???????????????????????###???## | | ???????????????????????# ??# ########### | | ???????????????????????+ *# #??????????? | | ???????????????????????# + +??????????? | | ???????????????????????# # #??????????? | | ???????????????????????# ??# #??????????? | | ???????????????????????# ????# #??????????? | | ???????????????????????#??????# #??????????? | | ???????????????????############# #??????????? | | ???????????????????# # #??????????? | | ???????????????????# # ########### | | ???????????????????# # | | ???????????????????# # | | ???????????????????# + | | ???????????????????# # | | ???????????????????# # | | ?????????????????##### # | | ?????????????????# @ | | ?????????????????# | | ?????????????????# @ | | ?????????????????# ##### | | ?????????????????# ??+ [ | | ?????????????????##### # | | ????????????????????? # # | | ???????????????????? # # | | ??????????????????? #? # | | ??????????????????? #?? # | | ?????????????????? #??? # ########## | | ????????????????? #????# #????????? | | ????????????????? #????# #????????? | | ?????????????????? #????# ?????????? | | ????????????????????? ?????? ?????????? | | ??????????????????????? ?????????????????????? | | ?????????????????????????????????????????????????? | | ?????????????????????????????????????????????????? | | ?????????????????????????????????????????????????? | | ?????????????????????????????????????????????????? | | ?????????????????????????????????????????????????? | | ?????????????????????????????????????????????????? | | ?????????????????????????????????????????????????? | | ?????????????????????????????????????????????????? | | ?????????????????????????????????????????????????? | +----------------------------------------------------+ Best States ------------- Heat Dissipation 44 Energy Generation 47 Energy Capacity 555 Matter Stores 300 Matter Capacity 300 Sight Range 16 Robot Scan Range 16 Terrain Scan Density 10 Power Amplification 20 Armor Coverage 150 Resistance: KI 35 Resistance: TH 55 Resistance: EX 35 Resistance: EM 35 Resistance: I 35 Resistance: S 35 Resistance: P 35 Utility Shielding 33 Evasion (%) 45 Offensive Hacking 20 Item Schematics ----------------- None Robot Schematics ------------------ None Fabricated ------------ Nothing Alien Tech Used ----------------- None Achievements -------------- None Challenges ------------ None Game ------ Seed DirtySupersonicEngine Manual? 0 Play Time 00:05:47 Cumulative 211.8 hours Start 2020.07.18 @ 22:18:45 End 2020.07.18 @ 22:21:50 Sessions 1 Manual Loads 0 Difficulty Explorer Special Mode Experiment/BattleRoyale Game No. 127 Rogue 0 Adventurer 44 Explorer 83 Win Type - Total 5 Types 4/0/1/0/0/0/0 Lore% 53 Gallery% 79 Achievement% 58 Wizard Run 0 Options --------- ASCII 0 Keyboard 0 Movement Mouse Keybinds 0 Fullscreen 1 Font 18/TerminusBold Map View 76x50 Tactical HUD 1 Map Filters NONE Filters SATURATION(100) Steam 1 RUN: 3e0c63e1-7fed-4a70-8951-aadb34328949